Cogmind - Beta 14 @@@ ROGUE MODE // 2024.09.02 @ 20:05:17 Player: grhkm Result: Destroyed by G-47 Trooper with Particle Gun Performance ------------- Evolutions (2) 1000 Regions Visited (3) 600 Robots Destroyed (95) 475 Value Destroyed (2068) 2068 Prototype IDs (2) 40 Alien Tech Used (0) 0 Bonus (2) 2 TOTAL SCORE: 4185 Bonus ------- High Alert Combat Kills 2 Cogmind --------- Core Integrity 0/550 Matter 226/300 Energy 36/250 System Corruption 0% Temperature Warm (103) Movement Walking (190) Ox1 Location -8/Materials Parts ------- > --- POWER (1) -------- Ion Engine > --- PROPULSION (4) --- Aluminum Leg Aluminum Leg Aluminum Leg > --- UTILITY (4) ------ High-capacity Storage Unit Improved Terrain Scan Processor > --- WEAPON (2) ------- Pulse Rifle Advanced Beam Cannon > --- INVENTORY (20) --- Small Storage Unit Shock Rifle Heavy EM Shotgun Medium Laser Particle Gun EM Pulse Cannon Heavy Assault Rifle Heavy Assault Rifle Heavy Assault Rifle Katana Peak State ------------ > --- POWER ------------ Deuterium Engine > --- PROPULSION ------- Aluminum Leg Improved Aluminum Leg Carbon-fiber Leg Titanium Leg > --- UTILITY ---------- Heat Sink High-capacity Storage Unit Medium Matter Pod Improved Terrain Scan Processor > --- WEAPON ----------- Heavy Assault Rifle Heavy Assault Rifle > --- INVENTORY -------- Ion Engine Deuterium Engine Aluminum Leg Aluminum Leg Aluminum Leg Improved Aluminum Leg Small Storage Unit Shock Rifle Heavy EM Shotgun Medium Laser Particle Gun Particle Gun Pulse Rifle Advanced Beam Cannon Heavy Assault Rifle Autogun Improved Assault Rifle Grenade Launcher Rocket Launcher Mini Grenade Launcher [Rating: 26] Favorites ----------- Power Ion Engine Engine Ion Engine Power Core Light Nuclear Core Propulsion Aluminum Leg Leg Aluminum Leg Utility Huge Storage Unit Device Heat Sink Storage Huge Storage Unit Processor Terrain Scan Processor Protection Weapon Shielding Weapon Improved Assault Rifle Energy Gun Pulse Rifle Energy Cannon Advanced Beam Cannon Ballistic Gun Improved Assault Rifle Ballistic Cannon Light Cannon Launcher Mini Grenade Launcher Build | -11 -10 -9 -8 ------- Run | Yrd Mat Mat Mat Slots Evolved 4 | . . 2 2 Power . | . . . . Propulsion 2 | . . 1 1 Utility 2 | . . 1 1 Weapon . | . . . . Parts Attached 82 | 6 11 22 43 Power 9 | 1 . 3 5 Engine 8 | 1 . 2 5 Core 1 | . . 1 . Reactor . | . . . . Propulsion 29 | 2 1 10 16 Treads . | . . . . Leg 29 | 2 1 10 16 Wheel . | . . . . Hover . | . . . . Flight . | . . . . Utility 17 | 1 4 4 8 Device 3 | . . . 3 Storage 8 | 1 3 . 4 Processor 2 | . . 1 1 Hackware . | . . . . Protection 4 | . 1 3 . Artifact . | . . . . Weapon 27 | 2 6 5 14 Energy Gun 5 | 2 . . 3 Energy Cannon 4 | . . 2 2 Ballistic Gun 10 | . 3 3 4 Ballistic Cannon 3 | . 3 . . Launcher 5 | . . . 5 Special Weapon . | . . . . Impact Weapon . | . . . . Slashing Weapon . | . . . . Piercing Weapon . | . . . . Special Melee Weapon . | . . . . Unidentified Prototypes 2 | . 1 1 . Parts Lost 24 | . . 5 19 Power 4 | . . 1 3 Propulsion 7 | . . 1 6 Utility 6 | . . 2 4 Weapon 7 | . . 1 6 Highest Loss Streak 12 | . . 3 12 To Critical Strikes 1 | . . . 1 Average Slot Usage (%) 96 | . 98 98 94 Engine 9 | . 14 8 8 Core 1 | . . 2 . Leg 31 | . 28 33 32 Device 2 | . . . 8 Storage 12 | . 14 11 14 Processor 7 | . . 8 10 Protection 8 | . 12 12 1 Energy Gun 1 | . 5 . 1 Energy Cannon 1 | . . 1 . Ballistic Gun 18 | . 19 20 15 Peak Build Rating 26 | 6 10 19 26 Average Rating 16 | 5 9 16 22 On Entrance 8 | . 6 10 19 Naked Turns . | . . . . Heaviest Build 98 | 14 92 95 98 Greatest Support 58 | 20 20 33 58 Greatest Overweight (x) 7 | 2 4 3 7 Average Overweight (x) 1 | . 1 2 1 Largest Inventory Capacity 25 | 8 25 25 25 Average Capacity 22 | 7 16 25 22 Most Carried 23 | 3 11 22 23 Average Carried 16 | 2 8 17 19 Final Capacity 25 | 8 25 25 20 Final Carried 22 | 3 11 22 10 Class Distribution -------------------- 56% | Mutant 43% | Scavenger-Mutant Dominant Class ---------------- Mutant | -10/Materials Mutant | -9/Materials Scavenger-Mutant | -8/Materials Resources | -11 -10 -9 -8 ----------- Run | Yrd Mat Mat Mat Matter Collected 2530 | 260 456 1044 770 Remotely . | . . . . Salvage Created 3199 | 102 157 1769 1171 Parts 205 | 8 14 103 80 Haulers Intercepted 2 | . . 1 1 Recyclers Shooed 7 | . 1 6 . Parts Field Recycled . | . . . . Retrieved Matter . | . . . . Parts Self-Destructed . | . . . . Prevented . | . . . . Kills | -11 -10 -9 -8 ------- Run | Yrd Mat Mat Mat Combat Hostiles Destroyed 50 | . 5 20 25 Guns 31 | . . 17 14 Cannons 10 | . 5 3 2 AOE 9 | . . . 9 Classes Destroyed 13 | 2 5 4 2 Worker 10 | . 1 8 1 Builder 6 | . 1 2 3 Tunneler 8 | 2 . 4 2 Hauler 2 | . . 1 1 Recycler 11 | 1 . 7 3 Mechanic 1 | . . 1 . Operator 1 | . . . 1 Watcher 6 | . 1 2 3 Swarmer 15 | . 3 4 8 Grunt 26 | . 2 12 12 Brawler 1 | . . 1 . Duelist 1 | . . . 1 Sentry 7 | . . 3 4 Best Kill Streak 12 | 2 3 7 12 Combat Bots Only 8 | . 3 4 8 Max Kills in Single Turn 5 | 1 2 2 5 Gunslinging . | . . . . Exploded 4 | . . . 4 Melee . | . . . . Uniques/NPCs Destroyed . | . . . . Combat | -11 -10 -9 -8 -------- Run | Yrd Mat Mat Mat Hostile Shots Fired 384 | . 12 142 230 Missed 106 | . 3 39 64 Damage Taken 3800 | . 75 1239 2486 Core 717 | . 7 160 550 Absorbed by Shields 110 | . . . 110 Redirected to Shielding 145 | . 8 101 36 Regen/Repaired (Parts) 41 | . . 41 . Core Remaining (%) 85 | 100 97 60 . Volleys Fired 242 | 8 12 130 92 Largest 2 | 2 2 2 2 Hottest 131 | 90 70 91 131 Shots Fired 466 | 16 24 246 180 Gun 417 | 16 14 233 154 Cannon 32 | . 10 13 9 Launcher 17 | . . . 17 Special . | . . . . Kinetic 395 | . 24 233 138 Thermal 45 | 8 . 13 24 Explosive 17 | . . . 17 Electromagnetic 9 | 8 . . 1 Robot Hit Streak 16 | 5 10 10 16 Robot Miss Streak 6 | 2 2 3 6 Penetration Max . | . . . . Secondary Targets 6 | . . 4 2 Max Gunslinging Chain 1 | . . 1 1 Shots Hit Robots 288 | 10 16 150 112 Core Hits 139 | 3 9 57 70 Critical Kills 2 | . . 1 1 Critical Parts Destroyed . | . . . . Critical Strikes 4 | 1 . 1 2 Burn 2 | 1 . . 1 Destroy 2 | . . 1 1 Melee Attacks . | . . . . Impact . | . . . . Slashing . | . . . . Piercing . | . . . . Sneak Attacks . | . . . . Combat Hostiles . | . . . . Follow-up Attacks . | . . . . Damage Inflicted 5570 | 130 268 2362 2810 Guns 3839 | 130 149 2136 1424 Cannons 469 | . 119 226 124 Explosions 1262 | . . . 1262 Melee . | . . . . Ramming . | . . . . Kinetic 3619 | . 268 2136 1215 Thermal 621 | 62 . 226 333 Explosive 1262 | . . . 1262 Electromagnetic 68 | 68 . . . Impact . | . . . . Slashing . | . . . . Piercing . | . . . . Highest Corruption 3 | . . 3 . Average Corruption 3 | . . 3 . Corruption Purged . | . . . . Corruption Blocked . | . . . . Effects 28 | . . 28 . Message Errors 5 | . . 5 . Matter Fused 9 | . . 9 . Heat Flow Errors 4 | . . 4 . Energy Discharges 2 | . . 2 . Data Loss (minor) 2 | . . 2 . Misfires 3 | . . 3 . Weapon Failures 3 | . . 3 . Overload Shots . | . . . . Overflow Damage 134 | . . . 134 Projectiles 4 | . . . 4 Explosions 130 | . . . 130 Melee . | . . . . Knockbacks 1 | . 1 . . Impact . | . . . . Kinetic 1 | . 1 . . Secondary . | . . . . Self-Inflicted Damage 325 | . . . 325 Shots 10 | . . . 10 Rammed . | . . . . Targets Rammed . | . . . . Kicked . | . . . . Crushed . | . . . . Highest Temperature 231 | 90 48 231 140 Average Temperature 48 | 43 14 56 43 Received Heat Transfer 1415 | . 12 510 893 Effects 1 | . . 1 . Interference 1 | . . 1 . Siege Activations . | . . . . Robots Corrupted . | . . . . Combat Hostiles . | . . . . Parts Fried . | . . . . Impact Corruptions . | . . . . Robots Melted . | . . . . Combat Hostiles . | . . . . Parts Melted 2 | . . . 2 Heat Transferred 1443 | 259 . 407 777 Parts Sabotaged . | . . . . Parts Stolen . | . . . . Parts Stripped . | . . . . Power Chain Reactions . | . . . . Alert | -11 -10 -9 -8 ------- Run | Yrd Mat Mat Mat Peak Influence 551 | 15 182 280 551 Initial 100 | . 9 . 100 Average 120 | 7 69 107 173 Maximum Alert Level 2 | . . 1 2 Low Security (%) 81 | 100 100 87 62 Level 1 18 | . . 12 36 Level 2 . | . . . . Level 3 . | . . . . Level 4 . | . . . . Level 5 . | . . . . High Security . | . . . . Max Security . | . . . . Squads Dispatched 9 | . 3 1 5 Investigation 2 | . 1 1 . Extermination . | . . . . Reinforcement 4 | . 2 . 2 Assault 1 | . . . 1 Garrison 2 | . . . 2 Intercept . | . . . . Searches Triggered . | . . . . Construction Impeded 1 | . . . 1 Haulers Reinforced . | . . . . Active Scanning Responses . | . . . . Cargo Convoy Interrupts . | . . . . Stealth | -11 -10 -9 -8 --------- Run | Yrd Mat Mat Mat Distress Signals 11 | . . 3 8 Communications Jammed . | . . . . Distress Signals . | . . . . Times Spotted 85 | . 8 33 44 Peak Tracking Total 8 | . 5 4 8 Tactical Retreats 9 | . 1 4 4 Traps | -11 -10 -9 -8 ------- Run | Yrd Mat Mat Mat Traps Triggered 2 | . . 1 1 Indirectly . | . . . . Trap Hack Attempts . | . . . . Triggered . | . . . . Disarmed . | . . . . Reprogrammed . | . . . . Reused . | . . . . Traps Extracted . | . . . . Installed . | . . . . Triggered . | . . . . Machines | -11 -10 -9 -8 ---------- Run | Yrd Mat Mat Mat Machines Disabled 4 | . . 1 3 Max in Single Turn 1 | . . 1 1 Garrison Access 1 | . . . 1 Machines Repaired . | . . . . Machines Dismantled . | . . . . Machines Sabotaged . | . . . . Overloaded Fab Kills . | . . . . Hacking | -11 -10 -9 -8 --------- Run | Yrd Mat Mat Mat Machines Accessed 2 | . 1 1 . Terminals 1 | . 1 . . Fabricators . | . . . . Repair Stations 1 | . . 1 . Recycling Units . | . . . . Scanalyzers . | . . . . Garrison Access . | . . . . Total Hacks 5 | . 3 2 . Successful 4 | . 2 2 . Failed 1 | . 1 . . Catastrophic . | . . . . Database Lockouts . | . . . . Manual . | . . . . Terminals 3 | . 3 . . Fabricators . | . . . . Repair Stations 2 | . . 2 . Recycling Units . | . . . . Scanalyzers . | . . . . Garrison Access . | . . . . Terminal Hacks 2 | . 2 . . Alert Level 1 | . 1 . . Hauler Manifests 1 | . 1 . . Fabricator Hacks . | . . . . Repair Station Hacks 2 | . . 2 . Scan Component 1 | . . 1 . Repair 1 | . . 1 . Recycling Unit Hacks . | . . . . Scanalyzer . | . . . . Garrison Access Hacks . | . . . . Unauthorized Hacks . | . . . . Terminals . | . . . . Fabricators . | . . . . Repair Stations . | . . . . Recycling Units . | . . . . Scanalyzers . | . . . . Garrison Access . | . . . . Data Cores Recovered 1 | . . . 1 Used . | . . . . Hacking Detections . | . . . . Full Trace Events . | . . . . Feedback Events . | . . . . Feedback Blocked . | . . . . Robot Schematics Acquired . | . . . . Robots Built . | . . . . Authchips . | . . . . Time . | . . . . Total Robot Build Rating . | . . . . Part Schematics Acquired . | . . . . Parts Built . | . . . . Authchips . | . . . . Time . | . . . . Total Part Build Rating . | . . . . Parts Repaired 1 | . . 1 . Time 26 | . . 26 . Parts Recycled . | . . . . Recycled Matter . | . . . . Retrieved Matter . | . . . . Retrieved Components . | . . . . Parts Scanalyzed . | . . . . Part Schematics Acquired . | . . . . Parts Damaged . | . . . . Bothacking | -11 -10 -9 -8 ------------ Run | Yrd Mat Mat Mat Used RIF Installer . | . . . . Robots Hacked . | . . . . Non-combat . | . . . . Combat . | . . . . Robot Hacks Applied . | . . . . Relay Couplers Released 1 | . . . 1 Machine Destruction 1 | . . . 1 Fabnet Peak Effective % . | . . . . Robots Rewired . | . . . . Allies Hacked . | . . . . Hacks Repelled . | . . . . Allies | -11 -10 -9 -8 -------- Run | Yrd Mat Mat Mat Total Allies . | . . . . Largest Group . | . . . . Highest-Rated Group . | . . . . Highest-Rated Ally . | . . . . Total Orders . | . . . . Ally Attacks . | . . . . Total Damage . | . . . . Kills . | . . . . Allies Corrupted . | . . . . Allies Melted . | . . . . Intel | -11 -10 -9 -8 ------- Run | Yrd Mat Mat Mat Robot Analysis Total . | . . . . Derelict Logs Recovered . | . . . . Drone Launches . | . . . . Drone Recoveries . | . . . . Exploration | -11 -10 -9 -8 ------------- Run | Yrd Mat Mat Mat Turns Passed 4158 | 132 656 1950 1420 Spaces Moved 1372 | 75 302 517 478 Core 6 | 3 . . 3 Treads . | . . . . Legs 1366 | 72 302 517 475 Wheels . | . . . . Hover . | . . . . Flight . | . . . . Fastest Speed 50 | 50 120 260 122 Average Speed 237 | 129 197 292 218 Slowest Speed 400 | 190 400 330 400 Overloaded Moves . | . . . . Propulsion Burnouts . | . . . . Robots Hopped . | . . . . Cave-ins Triggered . | . . . . Exploration Rate (%) 38 | 5 71 35 42 Regions Visited 3 Branch Regions . Pre-discovered Areas . | . . . . Known Exits Taken . | . . . . Unknown Exits Taken 3 | 1 1 1 . Scrap Searched . | . . . . Spaces Dug . | . . . . Terrain Destroyed 74 | . . . 74 Melee . | . . . . Projectile . | . . . . AOE 74 | . . . 74 Terrain Rammed . | . . . . Walls Destroyed . | . . . . Machines Disabled . | . . . . Actions | -11 -10 -9 -8 --------- Run | Yrd Mat Mat Mat Total 1834 | 91 342 723 678 Wait 69 | . . 38 31 Move 1369 | 74 301 516 478 Hop . | . . . . Pick Up 41 | 3 11 11 16 Fast Attach 21 | 6 3 5 7 Attach 24 | . . 5 19 Detach 5 | . . 1 4 Swap 37 | . 8 12 17 Drop 26 | . 7 5 14 Fire 242 | 8 12 130 92 Melee . | . . . . Ram . | . . . . Kick . | . . . . Crush . | . . . . Escape Stasis . | . . . . Rewire . | . . . . Trap . | . . . . Miscellaneous . | . . . . Route ------- -11/Scrapyard -10/Materials (discovered 2 exits: *Mat / [*Min]) -9/Materials -8/Materials History --------- Turn | Location | Event 32 | -11/Scrapyard | Discovered new exit (range 15) 133 | -11/Scrapyard | Entered Materials 305 | -10/Materials | Build established: Mutant 612 | -10/Materials | Discovered new exit (range 9) 704 | -10/Materials | Discovered new exit (range 16) 789 | -10/Materials | Entered another Materials area 789 | -9/Materials | Evolved 2 slots: Propulsion x1, Utility x1 1150 | -9/Materials | Lost 3 parts (1n1u1w) 1555 | -9/Materials | Build established: Scavenger-Mutant 2183 | -9/Materials | Build established: Mutant 2264 | -9/Materials | Repaired Weapon Shielding 2673 | -9/Materials | Discovered new exit (range 5) 2739 | -9/Materials | Entered another Materials area 2739 | -8/Materials | Evolved 2 slots: Propulsion x1, Utility x1 3001 | -8/Materials | Lost 3 parts (1p1u1w) 3255 | -8/Materials | Build established: Scavenger-Mutant 4045 | -8/Materials | Garrison activated, responded to threat 4061 | -8/Materials | Core integrity fell below 50% 4081 | -8/Materials | Core integrity fell below 20% 4113 | -8/Materials | Lost 12 parts (1p5n1u5w) 4120 | -8/Materials | Destroyed 8 combat bots 4159 | -8/Materials | Destroyed by G-47 Trooper with Particle Gun Last Messages --------------- 04122_ Acquired 38 matter. 04122_ U-05 Engineer lays Concrete. 04123_ K-01 Serf collects debris. 04125_ U-05 Engineer lays Concrete. 04127_ K-01 Serf collects debris. 04141_ Triggered Blade Trap. 04141_ Massive razor-sharp blades shoot up from within the floor. 04141_ Deuterium Engine severed. 04145_ S-10 Pest emerges from the garrison. 04146_ Acquired EM Pulse Cannon. 04149_ S-10 Pest destroyed. 04149_ ALERT: Garrison Access compromised, dispatching assault squad. 04149_ Garrison Access disabled. 04149_ Relay Coupler [Duelist] tumbles out of Garrison Access. 04151_ Critical hit (Burn: +37). 04152_ Aluminum Leg destroyed. 04157_ Med. Matter Pod destroyed. Map ----- +----------------------------------------------------+ | ??????????????????????????????????????????? | | ??????????????????????????????????????????? | | ??????????????????????????????????????????? | | ??????????????????????????????????????????? | | ??????????????????????????????????????????? | | ??????????????????????????????????????????? | | ??????????????????????????????????????????? | | ??????????????????????????????????????????? | | ??????????????????????????????????????????? | | ??????????????????????????????????????????? | | ??????????????????????????????????????????? | | ??????????????????????????????????????????? | | ??????????????????????????????????????????? | | ??????????????????????????????????????????? | | ??????????????????????????????????????????? | | ??????????????????????????????????????????? | | ??????????????????????????????????????????? | | ??????????????????????????????????????????? | | ??????????????????????????????????????????? | | ?????????????????###??????????????????????? | | ????????? ????## ########???????????????? | | ???????? ????+ ! #???????????????? | | ???????? = ????# " [ #???????????????? | | ????????# ???# "Gs%!]] #???????????????? | | ????????# #???# ""s!]] +???????????????? | | ????????# #???# ![ @#???????????????? | | ????????# #???# * #???????????????? | | " ??????# #???# #???????????????? | | " ""??### ###?#gg #???????????????? | | ?# #?#/#########???????????????? | | # ### #???????????????????????? | | ### ## #???????????????????????? | | % =#*+##??????????????????????? | | = %% ! #??????????????????????? | | !% #==![ #??????????????????????? | | ## = % #??????????????????????? | | ?# %! #??????????????????????? | | ?# "" * %| #??????????????????????? | | ?# "T *= #??????????????????????? | | ?# "" # # ##??????????????????????? | | ?+ ??????????????????????? | | ?# ##### * [?????????????????????? | | ?# ###### #???? [! ???????????????????? | | ?# ?????# #???? [ ??????????????????? | | ?# ?????# #???? ?????????????????? | | ?# ?????# #???? """ #????????????????? | | ?# ?????# #???? """ [?????????????????? | | ?#+?????# #???? "?????????????????????? | | ????????# #???? ?????????????????????? | | ????????+ #?????????????????????????????? | +----------------------------------------------------+ Best States ------------- Heat Dissipation 41 Energy Generation 14 Energy Capacity 275 Matter Stores 400 Matter Capacity 400 Sight Range 16 Terrain Scan Density 185 Additional Mass Support 9 Armor Coverage 150 Weapon Shielding 33 Evasion (%) 55 Item Schematics ----------------- None Robot Schematics ------------------ None Fabricated ------------ Nothing Alien Tech Used ----------------- None Achievements -------------- Shopping List Challenges ------------ None Game ------ Seed AuthchipImprovedTearclaws Manual? 0 Play Time 00:32:08 Cumulative 8.8 hours Start 2024.09.02 @ 18:37:59 End 2024.09.02 @ 20:05:17 Sessions 1 Manual Loads 0 Difficulty Rogue Special Mode None Game No. 20 Rogue 20 Adventurer 0 Explorer 0 Win Type - Total 0 Types 0/0/0/0/0/0/0/0/0 Lore% 2 Gallery% 15 Achievement% 12 Wizard Run 0 Options --------- Layout 1 ASCII 0 Keyboard 0 Movement Numpad Keybinds 0 Fullscreen 1 Font 16/Terminus Map View 50x40 Zoom Use 0% Tactical HUD 1 Map Filters NONE Filters NONE Steam 1 RUN: 339a9f6f-f1d6-4607-a52e-522ef828a691